bitfinex/quotes_BTCUSD_20251201
["timestamp","ask_amount","ask_price","bid_price","bid_amount"]
[1764580596042,2.323,86827.0,86826.0,0.02317]
[1764580596924,2.323,86827.0,86826.0,0.25351574]
[1764580597153,2.0,86827.0,86826.0,0.28528574]
[1764580597314,0.00025286,86829.0,86828.0,0.23034044]
[1764580597494,2.00025286,86829.0,86828.0,0.26211044]
[1764580597679,2.00025286,86829.0,86828.0,0.30826044]
[1764580598094,2.00025286,86829.0,86828.0,0.07792]
[1764580598287,2.00025286,86829.0,86828.0,0.26211044]
[1764580598865,2.00025286,86829.0,86828.0,0.26411044]
[1764580600688,2.00025286,86829.0,86828.0,0.39090049]
[1764580600883,0.00025286,86829.0,86828.0,0.39090049]
[1764580602985,0.00025286,86829.0,86828.0,0.31026044]
[1764580603950,0.00025286,86829.0,86828.0,0.30926044]
[1764580604211,0.00025286,86829.0,86828.0,0.30826044]
[1764580604573,0.00025286,86829.0,86828.0,0.30926044]
[1764580604797,0.00025286,86829.0,86828.0,0.30826044]
[1764580605178,0.00025286,86829.0,86828.0,0.31026044]
[1764580605376,0.00025286,86829.0,86828.0,0.41731462]
[1764580605725,0.00025286,86829.0,86828.0,0.41631462]
[1764580605846,0.00025286,86829.0,86828.0,0.41531462]
[1764580606050,0.00025286,86829.0,86828.0,0.41831462]
[1764580607045,0.00025286,86829.0,86828.0,0.41931462]
[1764580607832,0.0004,86860.0,86859.0,0.23025823]
[1764580608028,0.00051813,86860.0,86859.0,0.30591823]
[1764580608803,2.0,86859.0,86856.0,0.0115133]
[1764580609104,2.0,86859.0,86858.0,0.23026088]
[1764580610865,2.0,86859.0,86858.0,0.25987088]
[1764580611235,2.002,86859.0,86858.0,0.25987088]
[1764580611422,0.002,86859.0,86858.0,0.30592088]
[1764580612053,0.00051813,86860.0,86859.0,0.23025823]
[1764580612233,0.00051813,86860.0,86859.0,0.25986823]
[1764580613655,0.00149758,86860.0,86859.0,0.30591823]
[1764580613868,0.00249758,86860.0,86859.0,0.30591823]
[1764580616039,0.00249758,86860.0,86859.0,0.25986823]
[1764580616353,0.00249758,86860.0,86859.0,0.30591823]
[1764580617848,0.00249758,86860.0,86859.0,0.45421823]
[1764580618179,0.00249758,86860.0,86859.0,0.40816823]
[1764580619399,0.00249758,86860.0,86859.0,0.45421823]
[1764580620346,0.00249758,86860.0,86859.0,0.53485828]
[1764580621055,0.00149758,86860.0,86859.0,0.53485828]
[1764580621433,0.00149758,86860.0,86859.0,0.59838127]
[1764580622424,0.00149758,86860.0,86859.0,0.59738127]
[1764580622809,0.00149758,86860.0,86859.0,0.59938127]
[1764580622982,0.00149758,86860.0,86859.0,0.71308418]
[1764580623119,0.00149758,86860.0,86859.0,0.71908418]
[1764580623332,0.00149758,86860.0,86859.0,0.71108418]
[1764580623532,0.00149758,86860.0,86859.0,0.71308418]
[1764580623742,0.00149758,86860.0,86859.0,0.71808418]
[1764580624040,0.00149758,86860.0,86859.0,0.71608418]
[1764580624443,0.00149758,86860.0,86859.0,1.03508418]
[1764580624847,0.00149758,86860.0,86859.0,1.03808418]
[1764580625720,0.00149758,86860.0,86859.0,1.03708418]
[1764580626035,0.00149758,86860.0,86859.0,1.03808418]
[1764580626467,0.00149758,86860.0,86859.0,1.03408418]
[1764580626660,0.00149758,86860.0,86859.0,1.03708418]
[1764580626903,0.00149758,86860.0,86859.0,1.03608418]
[1764580627292,0.00149758,86860.0,86859.0,1.04108418]
[1764580628556,0.00149758,86860.0,86859.0,0.38555823]
[1764580628835,0.00149758,86860.0,86859.0,0.46121823]
[1764580629237,0.00149758,86860.0,86859.0,0.45921823]
[1764580629600,0.00149758,86860.0,86859.0,0.45521823]
[1764580630023,0.00149758,86860.0,86859.0,0.45421823]
[1764580630220,0.00149758,86860.0,86859.0,0.56792114]
[1764580630421,0.00149758,86860.0,86859.0,0.56892114]
[1764580631015,0.00149758,86860.0,86859.0,0.42062114]
[1764580632007,0.00149758,86860.0,86859.0,0.30691823]
[1764580632417,0.323,86879.0,86878.0,0.23020787]
[1764580632622,0.0004,86880.0,86879.0,0.23020522]
[1764580632825,0.0004,86880.0,86879.0,0.30586522]
[1764580633607,0.0004,86880.0,86877.0,0.01151052]
[1764580633894,0.0004,86880.0,86879.0,0.25981522]
[1764580634103,0.0034,86880.0,86879.0,0.25981522]
[1764580634318,0.0004,86880.0,86879.0,0.25981522]
[1764580634745,0.0014,86880.0,86879.0,0.25981522]
[1764580634943,0.0014,86880.0,86879.0,0.41139503]
[1764580635305,0.0014,86880.0,86879.0,0.30586522]
[1764580635510,2.0014,86880.0,86879.0,0.30586522]
[1764580635866,2.0,86879.0,86875.0,0.02426]
[1764580636056,2.0,86879.0,86878.0,0.23020787]
[1764580636208,2.0,86879.0,86877.0,0.23020941]
[1764580636422,2.0,86879.0,86876.0,0.01151065]
[1764580636423,2.0,86879.0,86878.0,0.02961]
[1764580636624,2.0,86879.0,86878.0,0.25981787]
[1764580637245,2.001,86879.0,86878.0,0.25981787]
[1764580637663,2.0,86879.0,86878.0,0.25981787]
[1764580638125,2.00060007,86879.0,86878.0,0.25981787]
[1764580638645,2.00060007,86879.0,86875.0,0.02426]
[1764580638646,2.0,86877.0,86875.0,0.02426]
[1764580638879,2.0,86877.0,86870.0,0.28554936]
[1764580638880,2.0,86876.0,86872.0,0.23022317]
[1764580639077,2.0,86876.0,86865.0,0.02426]
[1764580639078,0.01151079,86875.0,86871.0,0.01151132]
[1764580639287,0.01151079,86875.0,86871.0,0.24173772]
[1764580639446,2.0,86874.0,86872.0,0.24173373]
[1764580639652,2.0,86874.0,86873.0,0.23022112]
[1764580639948,0.24174802,86868.0,86865.0,0.24175441]
[1764580640148,2.0,86868.0,86865.0,0.24175441]
[1764580640347,2.23023458,86868.0,86865.0,0.24175441]
[1764580640617,0.23023458,86868.0,86865.0,0.24175441]
[1764580640819,0.24174629,86868.0,86865.0,0.24175441]
[1764580640977,0.24174629,86868.0,86866.0,0.23023945]
[1764580641176,0.01151171,86868.0,86866.0,0.2302383]
[1764580641584,0.24174631,86868.0,86865.0,0.24175441]
[1764580641819,0.24173888,86871.0,86867.0,0.04072185]
[1764580642029,0.24173553,86872.0,86868.0,0.25944356]
[1764580642191,2.0,86871.0,86870.0,0.02921]
[1764580642397,2.01151118,86872.0,86866.0,0.001]
[1764580642595,2.0,86869.0,86866.0,0.24275098]
[1764580642795,2.0,86870.0,86867.0,0.24174865]
[1764580643028,2.0,86869.0,86866.0,0.01151198]
[1764580643336,2.0,86869.0,86867.0,0.2302366]
[1764580644530,2.0,86869.0,86868.0,0.23023437]
[1764580645555,2.0,86870.0,86869.0,0.23023172]
[1764580646495,2.0,86870.0,86868.0,0.23123437]
[1764580646702,2.55323172,86869.0,86868.0,0.001]
[1764580647220,2.55323172,86869.0,86858.0,0.01151304]
[1764580647423,2.0,86865.0,86861.0,0.01151264]
[1764580647673,0.33451171,86868.0,86863.0,0.01151238]
[1764580647873,2.0,86866.0,86864.0,0.25768498]
[1764580648042,2.0,86866.0,86865.0,0.23024233]
[1764580648250,2.0,86866.0,86865.0,0.25768233]
[1764580648447,2.0,86867.0,86865.0,0.25768233]
[1764580648652,0.01151198,86866.0,86863.0,0.01151238]
[1764580648964,2.0,86865.0,86863.0,0.28671995]
[1764580649302,0.23024358,86865.0,86863.0,0.28671989]
[1764580649499,2.0,86865.0,86864.0,0.02744]
[1764580649830,0.01151317,86857.0,86848.0,0.2302859]
[1764580649956,0.23026337,86859.0,86844.0,0.02133]
[1764580649957,0.24180701,86847.0,86844.0,0.02133]
[1764580650168,0.23029535,86845.0,86844.0,0.00011813]
[1764580650370,2.23029535,86845.0,86844.0,0.00011813]
[1764580651713,2.55329535,86845.0,86844.0,0.00011813]
[1764580652162,2.55329535,86845.0,86844.0,0.00111813]
[1764580652359,2.55429535,86845.0,86844.0,0.00111813]
[1764580656851,2.55429535,86845.0,86844.0,0.02855813]
[1764580656852,2.324,86845.0,86844.0,0.02855813]
[1764580657283,2.324,86845.0,86844.0,0.07351813]
[1764580657667,2.55429535,86845.0,86844.0,0.02855813]
[1764580657867,2.55429535,86845.0,86844.0,0.00111813]
[1764580659151,2.60597594,86845.0,86844.0,0.00111813]
[1764580659584,2.66849893,86845.0,86844.0,0.00111813]
[1764580660026,2.66849893,86845.0,86844.0,0.00011813]
[1764580660986,2.61581834,86845.0,86844.0,0.00011813]
[1764580661387,2.62081834,86845.0,86844.0,0.00011813]
[1764580661609,2.61581834,86845.0,86844.0,0.00011813]
[1764580662064,2.64414834,86845.0,86844.0,0.00011813]
[1764580662808,2.64414834,86845.0,86802.0,0.02133]
[1764580662809,0.24191056,86809.0,86802.0,0.02133]
[1764580663029,0.01151967,86808.0,86803.0,0.01152033]
[1764580663204,0.01151967,86808.0,86802.0,0.02144815]
[1764580663417,0.24191596,86807.0,86803.0,0.2419266]
[1764580663762,0.24191056,86809.0,86804.0,0.23040383]
[1764580663963,0.00728,86817.0,86808.0,0.02744]
[1764580664184,1.99694852,86815.0,86812.0,0.23038258]
[1764580664386,2.2388395,86816.0,86812.0,0.01151914]
[1764580664533,1.99694852,86815.0,86813.0,0.04496]
[1764580665075,1.99694852,86815.0,86814.0,0.04877]
[1764580665433,1.99694852,86815.0,86814.0,0.09373]
[1764580665834,2.31994852,86815.0,86814.0,0.09373]
[1764580666030,2.55032345,86815.0,86814.0,0.02133]
[1764580667123,0.24190686,86811.0,86807.0,0.24191085]
[1764580667324,0.24190686,86811.0,86807.0,0.29092172]
[1764580667523,0.56490686,86811.0,86810.0,0.02773]
[1764580667885,0.56490686,86811.0,86810.0,0.07116]
[1764580668088,0.56490686,86811.0,86810.0,0.02773]
[1764580669006,0.323,86811.0,86810.0,0.3015482]
[1764580669325,0.323,86811.0,86810.0,0.0720452]
[1764580669893,0.323,86811.0,86810.0,0.3024334]
[1764580670319,0.323,86811.0,86810.0,0.3034334]
[1764580670938,2.0,86822.0,86820.0,0.01151808]
[1764580671151,0.323,86821.0,86820.0,0.24187725]
[1764580671496,0.01151728,86826.0,86820.0,0.26960725]
[1764580671723,2.0,86827.0,86825.0,0.02172]
[1764580671923,2.0,86826.0,86825.0,0.02172]
[1764580672135,2.23034319,86827.0,86826.0,0.02773]
[1764580672724,2.0,86827.0,86826.0,0.07116]
[1764580672945,0.323,86828.0,86826.0,0.08267728]
[1764580673145,2.23034309,86827.0,86826.0,0.02773]
[1764580673307,2.0,86826.0,86825.0,0.02172]
[1764580673513,2.0,86827.0,86825.0,0.02172]
[1764580673711,2.0,86826.0,86825.0,0.02172]
[1764580673962,0.2418803,86820.0,86817.0,0.02172]
[1764580674464,0.01151808,86820.0,86817.0,0.02172]
[1764580674926,0.323,86823.0,86819.0,0.24188253]
[1764580675105,0.01151728,86826.0,86822.0,0.24187243]
[1764580675268,2.33451728,86826.0,86825.0,0.02773]
[1764580675470,0.56486302,86826.0,86825.0,0.02773]
[1764580675691,0.01151781,86822.0,86819.0,0.01151821]
[1764580675852,2.0,86823.0,86820.0,0.01151808]
[1764580676057,2.323,86823.0,86822.0,0.23035636]
[1764580676288,2.323,86823.0,86822.0,0.25808636]
[1764580676495,2.323,86823.0,86822.0,0.30151636]
[1764580676703,2.323,86823.0,86822.0,0.07166576]
[1764580677124,2.325,86823.0,86822.0,0.30202212]
[1764580677323,2.323,86823.0,86822.0,0.30202212]
[1764580677669,2.325,86823.0,86822.0,0.30202212]
[1764580678899,2.002,86823.0,86822.0,0.30202212]
[1764580679083,2.002,86823.0,86822.0,0.42898729]
[1764580679279,0.002,86823.0,86822.0,0.38266217]
[1764580680590,2.0,86853.0,86851.0,0.24179201]
[1764580680784,2.323,86852.0,86848.0,0.24180173]
[1764580680998,0.323,86850.0,86847.0,0.24180422]
[1764580681195,0.323,86850.0,86847.0,0.0549445]
[1764580681418,0.323,86850.0,86849.0,0.04945]
[1764580681860,0.32311804,86850.0,86849.0,0.04945]
[1764580682049,0.32311804,86850.0,86848.0,0.23028625]
[1764580682050,0.323,86845.0,86841.0,0.03323529]
[1764580682208,2.0,86845.0,86841.0,0.02172]
[1764580682559,0.01151516,86842.0,86837.0,0.01151582]
[1764580682703,0.2303031,86843.0,86839.0,0.24182664]
[1764580682907,0.24181326,86844.0,86841.0,0.23030587]
[1764580683114,0.33451476,86845.0,86843.0,0.02773]
[1764580683333,0.323,86845.0,86844.0,0.258028]
[1764580683529,0.23028931,86848.0,86844.0,0.2695429]
[1764580683530,0.323,86847.0,86844.0,0.2695429]
[1764580683750,0.323,86847.0,86845.0,0.02773]
[1764580683947,0.55329019,86847.0,86846.0,0.02172]
[1764580684205,0.23030581,86842.0,86838.0,0.24182772]
[1764580684358,0.24182631,86840.0,86837.0,0.01151582]
[1764580684731,0.23031132,86839.0,86837.0,0.24183041]
[1764580685151,0.23031132,86839.0,86837.0,0.01151582]
[1764580685348,0.24183211,86838.0,86834.0,0.03323622]
[1764580685547,0.24182997,86838.0,86835.0,0.24183564]
[1764580685771,0.24182997,86838.0,86837.0,0.001]
[1764580686291,0.01151529,86841.0,86837.0,0.01151582]
[1764580686445,0.2303109,86840.0,86837.0,0.24183008]
[1764580687087,0.23031128,86839.0,86835.0,0.001]
[1764580687327,0.23031625,86838.0,86835.0,0.24283567]
[1764580687710,0.24182684,86839.0,86836.0,0.23031867]
[1764580688066,0.24182684,86839.0,86837.0,0.001]
[1764580688271,0.01151529,86841.0,86837.0,0.001]
[1764580688466,0.2303135,86839.0,86836.0,0.24183269]
[1764580688822,0.2303135,86839.0,86836.0,0.24283269]
[1764580689022,0.01151503,86843.0,86837.0,0.24183094]
[1764580689179,0.0115149,86844.0,86839.0,0.01151556]
[1764580689521,0.55330065,86843.0,86842.0,0.02773]
[1764580689778,0.23031015,86840.0,86837.0,0.01151582]
[1764580689971,0.01151529,86841.0,86837.0,0.24183238]
[1764580690140,0.24182145,86841.0,86838.0,0.23031151]
[1764580691302,0.24182453,86840.0,86837.0,0.01151582]
[1764580691515,0.24182453,86840.0,86837.0,0.24183168]
[1764580691516,0.23031187,86839.0,86837.0,0.24183168]
[1764580691754,0.23031187,86839.0,86838.0,0.001]
[1764580691929,0.24182145,86841.0,86838.0,0.1493]
[1764580692128,0.24182145,86841.0,86838.0,0.37961207]
[1764580692345,0.24182145,86841.0,86838.0,0.37861207]
[1764580692557,0.01151529,86841.0,86839.0,0.23031058]
[1764580692998,0.24182226,86841.0,86838.0,0.39012776]
[1764580693695,0.23031089,86840.0,86838.0,0.1483]
[1764580694279,0.23031126,86839.0,86838.0,0.1493]
[1764580694796,0.23031126,86839.0,86838.0,0.1483]
[1764580695167,0.23031126,86839.0,86838.0,0.1493]
[1764580695577,0.23031126,86839.0,86838.0,0.1483]
[1764580695805,0.23031126,86839.0,86838.0,0.1493]
[1764580696527,0.01151529,86841.0,86838.0,0.1493]
[1764580696886,0.24182138,86841.0,86838.0,0.1493]
[1764580697084,0.23030892,86840.0,86838.0,0.37961391]
[1764580697349,0.24182138,86841.0,86838.0,0.37861391]
[1764580697733,0.24182138,86841.0,86838.0,0.37961391]
[1764580697932,0.24182138,86841.0,86839.0,0.1483]
[1764580698535,0.23030861,86840.0,86839.0,0.1483]
[1764580700186,0.23030861,86840.0,86839.0,0.1493]
[1764580700499,0.23030861,86840.0,86839.0,0.1483]
[1764580700992,0.23030861,86840.0,86839.0,0.1493]
[1764580702706,0.323,86847.0,86839.0,0.17542]
[1764580703046,0.23030418,86842.0,86840.0,0.02612]
[1764580703560,0.23030861,86840.0,86839.0,0.1483]
[1764580704331,0.23030861,86840.0,86839.0,0.14474482]
[1764580705137,0.23030861,86840.0,86839.0,0.14574482]
[1764580705708,0.23030596,86841.0,86839.0,0.37605571]
[1764580706042,0.24181916,86842.0,86839.0,0.37605571]
[1764580706247,0.01151436,86848.0,86840.0,0.24182343]
[1764580706494,0.323,86843.0,86841.0,0.23030484]
[1764580706830,0.323,86843.0,86842.0,0.2564233]
[1764580707480,0.323,86849.0,86848.0,0.23028661]
[1764580707646,0.00011804,86850.0,86849.0,0.27585474]
[1764580707844,0.00011804,86850.0,86849.0,0.31443474]
[1764580708126,0.00011804,86850.0,86849.0,0.45917956]
[1764580708272,0.00011804,86850.0,86849.0,0.58016247]
[1764580708478,0.00011804,86850.0,86849.0,0.45917956]
[1764580708679,0.00011804,86850.0,86849.0,0.46645956]
[1764580709060,0.00111804,86850.0,86849.0,0.46645956]
[1764580709254,0.00011804,86850.0,86849.0,0.46645956]
[1764580709655,0.00011804,86850.0,86849.0,0.37502956]
[1764580710231,0.00011804,86850.0,86849.0,0.14474482]
[1764580710375,0.55340013,86850.0,86849.0,0.14574482]
[1764580710579,2.55340013,86850.0,86849.0,0.002]
[1764580710801,0.01151582,86837.0,86830.0,0.00025286]
[1764580710979,0.01151635,86833.0,86830.0,0.00025286]
[1764580711281,0.23033248,86831.0,86830.0,0.00025286]
[1764580711480,0.323,86832.0,86830.0,0.00025286]
[1764580711865,0.55332999,86832.0,86830.0,0.00025286]
[1764580712266,0.002,86831.0,86830.0,0.23058624]
[1764580712722,0.002,86831.0,86830.0,0.25661624]
[1764580712963,0.002,86831.0,86830.0,0.29519624]
[1764580713165,0.002,86831.0,86830.0,0.29619624]
[1764580713428,2.0,86841.0,86836.0,0.23031731]
[1764580713662,2.0,86841.0,86838.0,0.01151569]
[1764580713879,2.0,86841.0,86839.0,0.23030976]
[1764580714853,0.23430646,86841.0,86838.0,0.24182852]
[1764580715389,0.23030883,86840.0,86838.0,0.01151569]
[1764580715684,0.24582175,86841.0,86838.0,0.24182946]
[1764580715837,0.01151569,86838.0,86834.0,0.23032352]
[1764580716036,0.24183195,86838.0,86834.0,0.23032352]
[1764580716312,0.24183195,86838.0,86835.0,0.01151609]
[1764580716586,0.23031696,86837.0,86835.0,0.01151609]
[1764580716736,0.23032467,86834.0,86830.0,0.01176961]
[1764580716940,0.24183278,86837.0,86832.0,0.01151649]
[1764580717230,0.23032199,86835.0,86832.0,0.24184131]
[1764580717384,0.24183543,86836.0,86832.0,0.24184131]
[1764580717750,0.24183543,86836.0,86833.0,0.23032697]
[1764580718095,0.002,86834.0,86832.0,0.24184131]
[1764580718297,0.23032208,86835.0,86832.0,0.24184131]
[1764580718496,0.003,86836.0,86833.0,0.01151635]
[1764580718706,0.003,86836.0,86835.0,0.02603]
[1764580718926,0.003,86836.0,86835.0,0.25635187]
[1764580719109,0.003,86836.0,86835.0,0.29493187]
[1764580719840,0.323,86847.0,86845.0,0.23029358]
[1764580720011,2.323,86846.0,86845.0,0.23029358]
[1764580720211,0.323,86846.0,86845.0,0.26887358]
[1764580720507,0.323,86846.0,86845.0,0.25632358]
[1764580720709,0.323,86846.0,86845.0,0.02603]
[1764580720914,0.01151596,86836.0,86831.0,0.01151662]
[1764580721073,0.01151596,86836.0,86831.0,0.24184883]
[1764580721274,0.24183545,86836.0,86832.0,0.01151649]
[1764580721501,0.23032189,86835.0,86832.0,0.01151649]
[1764580721684,0.23032189,86835.0,86832.0,0.38659088]
[1764580721863,0.24183529,86836.0,86833.0,0.23032711]
[1764580722070,0.24182586,86840.0,86836.0,0.230319]
[1764580722071,0.24182422,86840.0,86836.0,0.230319]
[1764580722301,0.23031448,86838.0,86836.0,0.02603]
[1764580722499,0.33451569,86838.0,86835.0,0.01954]
[1764580722678,0.23031922,86836.0,86835.0,0.01954]
[1764580723069,0.23032717,86833.0,86832.0,0.14474482]
[1764580723266,0.23032717,86833.0,86830.0,0.01176961]
[1764580723267,0.23033248,86831.0,86830.0,0.00025286]
[1764580723488,0.55333248,86831.0,86830.0,0.00025286]
[1764580724265,0.55533248,86831.0,86830.0,0.00025286]
[1764580724717,0.55333248,86831.0,86830.0,0.00025286]
[1764580725867,0.327,86831.0,86830.0,0.02628286]
[1764580726344,0.55733248,86831.0,86830.0,0.02628286]
[1764580727473,0.327,86831.0,86830.0,0.25661799]
[1764580728246,0.327,86831.0,86830.0,0.02628286]
[1764580730020,0.325,86831.0,86830.0,0.25661799]
[1764580731166,0.325,86831.0,86830.0,0.29364799]
[1764580731543,0.002,86831.0,86830.0,0.29364799]
[1764580732458,0.33451516,86842.0,86839.0,0.24182448]
[1764580732624,0.33451516,86842.0,86840.0,0.23030804]
[1764580733040,0.323,86842.0,86841.0,0.25480596]
[1764580733242,0.33451476,86845.0,86843.0,0.23030012]
[1764580733573,2.323,86844.0,86843.0,0.23030012]
[1764580733734,2.323,86844.0,86843.0,0.26733012]
[1764580733940,2.323,86844.0,86843.0,0.23030012]
[1764580734161,2.323,86844.0,86843.0,0.22126012]
[1764580734361,0.323,86844.0,86843.0,0.28279012]
[1764580734891,0.00011804,86850.0,86849.0,0.23028474]
[1764580735076,0.00011804,86850.0,86849.0,0.39952956]
[1764580735287,0.00011804,86850.0,86849.0,0.43655956]
[1764580735889,0.00011804,86850.0,86849.0,0.29181474]
[1764580736095,0.00211804,86850.0,86849.0,0.29181474]
[1764580736290,0.00211804,86850.0,86849.0,0.40551765]
[1764580736672,0.00011804,86850.0,86849.0,0.40551765]
[1764580737392,0.00011804,86850.0,86849.0,0.29181474]
[1764580737761,0.00011804,86850.0,86849.0,0.29281474]
[1764580738872,0.00011804,86850.0,86849.0,0.30009474]
[1764580740419,0.00011804,86850.0,86849.0,0.29281474]
[1764580740769,0.00011804,86850.0,86849.0,0.25578474]
[1764580741342,0.00011804,86850.0,86849.0,0.29281474]
[1764580741525,0.00011804,86850.0,86849.0,0.25578474]
[1764580741728,0.00011804,86850.0,86849.0,0.25478474]
[1764580741936,0.00011804,86850.0,86849.0,0.23028474]
[1764580742098,0.00211804,86850.0,86849.0,0.29181474]
[1764580742850,0.00011804,86850.0,86849.0,0.29181474]
[1764580743704,0.00011804,86850.0,86849.0,0.29281474]
[1764580745538,0.00011804,86850.0,86849.0,0.43755956]
[1764580747933,0.00011804,86850.0,86849.0,0.40052956]
[1764580748132,0.00011804,86850.0,86849.0,0.43755956]
[1764580754391,0.00011804,86850.0,86849.0,0.20727482]
[1764580754597,0.00011804,86850.0,86849.0,0.40052956]
[1764580754803,0.00011804,86850.0,86849.0,0.43755956]
[1764580755528,0.00011804,86850.0,86849.0,0.43655956]
[1764580755728,0.00011804,86850.0,86849.0,0.43755956]
[1764580755901,0.00011804,86850.0,86849.0,0.14574482]
[1764580756105,0.00011804,86850.0,86849.0,0.17024482]
[1764580756348,0.00011804,86850.0,86849.0,0.39952956]
[1764580756539,0.00011804,86850.0,86849.0,0.43755956]
[1764580757516,0.00011804,86850.0,86849.0,0.29281474]
[1764580757767,0.27761676,86850.0,86849.0,0.001]
[1764580757964,0.55340013,86850.0,86849.0,0.001]
[1764580758730,0.2302927,86846.0,86845.0,0.14474482]
[1764580760250,0.23029064,86847.0,86845.0,0.16834482]
[1764580760464,0.33451423,86849.0,86845.0,0.16834482]
[1764580760801,0.2312927,86846.0,86845.0,0.14474482]
[1764580761205,0.2302927,86846.0,86845.0,0.14474482]
[1764580761628,0.2303033,86842.0,86841.0,0.14474482]
[1764580762201,0.56481012,86845.0,86841.0,0.14474482]
[1764580762401,0.323,86843.0,86842.0,0.0236]
[1764580762550,0.323,86843.0,86842.0,0.2539033]
[1764580763169,0.323,86843.0,86842.0,0.2910533]
[1764580763589,0.323,86849.0,86846.0,0.01151463]
[1764580763763,0.323,86849.0,86848.0,0.25388739]
[1764580764255,0.323,86849.0,86848.0,0.29103739]
[1764580764451,0.00011804,86850.0,86849.0,0.23028474]
[1764580764655,0.00011804,86850.0,86849.0,0.29103474]
[1764580765769,0.00111804,86850.0,86849.0,0.29103474]
[1764580766306,0.00111804,86850.0,86849.0,0.43577956]
[1764580766911,0.00011804,86850.0,86849.0,0.39862956]
[1764580767113,0.00011804,86850.0,86849.0,0.37602956]
[1764580767653,0.00011804,86850.0,86849.0,0.39989956]
[1764580768029,0.00011804,86850.0,86849.0,0.43488956]
[1764580768230,0.00111804,86850.0,86849.0,0.43388956]
[1764580769915,0.00011804,86850.0,86849.0,0.43388956]
[1764580770278,0.00011804,86850.0,86849.0,0.43488956]
[1764580770660,0.00011804,86850.0,86849.0,0.43588956]
[1764580774427,0.00011804,86850.0,86849.0,0.47123697]
[1764580774739,0.00011804,86850.0,86849.0,0.43588956]
[1764580781704,0.00011804,86850.0,86849.0,0.45467956]
[1764580786675,0.00114778,86859.0,86851.0,0.14462678]
[1764580786967,0.00114778,86859.0,86858.0,0.33477093]
[1764580787169,0.00114778,86859.0,86858.0,0.43064617]
[1764580789772,0.00214778,86859.0,86858.0,0.25312088]
[1764580790188,0.00214778,86859.0,86858.0,0.43479766]
[1764580804308,0.00164778,86859.0,86858.0,0.44207766]
[1764580807428,0.00164778,86859.0,86858.0,0.43479766]
[1764580807586,0.00164778,86859.0,86858.0,0.44207766]
[1764580809175,0.00164778,86859.0,86858.0,0.55578057]
[1764580810610,0.00164778,86859.0,86858.0,0.54850057]
[1764580810884,0.00164778,86859.0,86858.0,0.44207766]
[1764580814268,0.00164778,86859.0,86858.0,0.001]
[1764580814616,0.23190601,86859.0,86858.0,0.001]
[1764580815457,0.00164778,86859.0,86858.0,0.23126088]
[1764580816469,0.00164778,86859.0,86858.0,0.25412088]
[1764580816676,0.00164778,86859.0,86858.0,0.29017088]
[1764580817197,0.00164778,86859.0,86858.0,0.25412088]
[1764580817954,0.00164778,86859.0,86858.0,0.001]
[1764580818501,0.23190601,86859.0,86858.0,0.001]
[1764580818658,0.00164778,86859.0,86858.0,0.001]
[1764580818844,0.23190601,86859.0,86858.0,0.001]
[1764580821319,0.55490601,86859.0,86858.0,0.001]
[1764580826662,0.32464778,86859.0,86858.0,0.001]
[1764580827470,0.55490601,86859.0,86858.0,0.001]
[1764580828586,0.32464778,86859.0,86858.0,0.001]
[1764580829095,0.55490601,86859.0,86858.0,0.001]
[1764580829307,0.32464778,86859.0,86858.0,0.28400088]
[1764580831284,0.00164778,86859.0,86858.0,0.36464093]
[1764580831727,0.00164778,86859.0,86858.0,0.50926771]
[1764580837356,0.00164778,86859.0,86858.0,0.37192093]
[1764580841278,0.00164778,86859.0,86858.0,0.28400088]
[1764580841457,0.00164778,86859.0,86858.0,0.36464093]
[1764580842313,0.00164778,86859.0,86858.0,0.001]
[1764580845333,0.00164778,86859.0,86858.0,0.02205]
[1764580845739,0.00164778,86859.0,86858.0,0.05374]
[1764580846072,0.00164778,86859.0,86858.0,0.02205]
[1764580846269,0.00164778,86859.0,86858.0,0.001]
[1764580847276,0.00164778,86859.0,86858.0,0.02329]
[1764580848378,0.00164778,86859.0,86858.0,0.001]
[1764580849450,0.00164778,86859.0,86858.0,0.02329]
[1764580851461,0.00164778,86859.0,86858.0,0.05667]
[1764580851893,0.00164778,86859.0,86858.0,0.02329]
[1764580853509,0.00164778,86859.0,86858.0,0.25355088]
[1764580853712,0.00164778,86859.0,86858.0,0.26954088]
[1764580854499,0.00164778,86859.0,86858.0,0.38502336]
[1764580854702,0.00164778,86859.0,86858.0,0.30292088]
[1764580855102,0.00164778,86859.0,86858.0,0.30181088]
[1764580861230,0.00064778,86859.0,86858.0,0.30181088]
[1764580861422,0.00064778,86859.0,86858.0,0.30481088]
[1764580861623,0.00064778,86859.0,86858.0,0.41951379]
[1764580864302,0.00064778,86859.0,86858.0,0.56414057]
[1764580864853,0.00064778,86859.0,86858.0,0.62666356]
[1764580867893,0.63143986,86880.0,86858.0,0.62666356]
[1764580867894,0.0004,86880.0,86862.0,0.14462678]
[1764580868097,0.0004,86910.0,86889.0,0.23017873]
[1764580868448,0.00079362,86890.0,86889.0,0.30183873]
[1764580869634,0.00079362,86890.0,86889.0,0.30283873]
[1764580869897,0.00079362,86890.0,86889.0,0.46442882]
[1764580871076,0.00079362,86890.0,86889.0,0.30283873]
[1764580871248,0.00079362,86890.0,86889.0,0.30383873]
[1764580873071,0.00079362,86890.0,86889.0,0.24816873]
[1764580873283,0.00079362,86890.0,86889.0,0.27045873]
[1764580873654,0.00177256,86890.0,86889.0,0.24816873]
[1764580874759,0.00177256,86890.0,86889.0,0.30383873]
[1764580876896,0.00177256,86890.0,86889.0,0.27045873]
[1764580877698,0.00177256,86890.0,86889.0,0.24816873]
[1764580877880,0.00177256,86890.0,86889.0,0.26950873]
[1764580879088,0.00170854,86890.0,86889.0,0.41780873]
[1764580879521,0.00170854,86890.0,86889.0,0.44918873]
[1764580882837,0.00170854,86890.0,86889.0,0.51171172]
[1764580888065,0.0004,86910.0,86907.0,0.01150655]
[1764580888264,0.00051802,86910.0,86909.0,0.34522581]
[1764580888688,0.00051802,86910.0,86909.0,0.37548581]
[1764580889508,0.00551802,86910.0,86909.0,0.37548581]
[1764580890486,0.00051802,86910.0,86909.0,0.37548581]
[1764580891538,0.00351802,86910.0,86908.0,0.14659146]
[1764580891740,0.00351802,86910.0,86909.0,0.23012576]
[1764580892370,0.00051802,86910.0,86909.0,0.23012576]
[1764580892867,0.00351802,86910.0,86909.0,0.23012576]
[1764580893069,0.00051802,86910.0,86909.0,0.23012576]
[1764580893292,0.00351802,86910.0,86909.0,0.23012576]
[1764580893795,0.00414934,86910.0,86909.0,0.23012576]
[1764580893984,0.00414934,86910.0,86909.0,0.37671722]